[Event "Titled Tuesday Blitz April 26 Early 2022"]
[White "Sanchez Alvares, Kelvin Antonio"]
[Black "Harshavardhan G B"]
[WhiteFideId "3906680"]
[BlackFideId "25059009"]
[WhiteElo "2193"]
[BlackElo "1831"]
[Result "1/2-1/2"]
[Round "04"]
[TimeControl "180+1"]
[Date "2022.04.26"]
[WhiteClock "0:00:03"]
[BlackClock "0:00:03"]

1. e4 {[%clk 0:03:00]}  e5 {[%clk 0:02:58]} 2. Nf3 {[%clk 0:03:00]}  Nc6 {[%clk 0:02:57]} 3. d4 {[%clk 0:02:58]}  exd4 {[%clk 0:02:57]} 4. Nxd4 {[%clk 0:02:58]}  Bc5 {[%clk 0:02:56]} 5. Nxc6 {[%clk 0:02:58]}  bxc6 {[%clk 0:02:53]} 6. Bd3 {[%clk 0:02:55]}  d6 {[%clk 0:02:53]} 7. O-O {[%clk 0:02:55]}  Nf6 {[%clk 0:02:53]} 8. Nc3 {[%clk 0:02:54]}  a5 {[%clk 0:02:50]} 9. Bg5 {[%clk 0:02:50]}  h6 {[%clk 0:02:49]} 10. Bh4 {[%clk 0:02:48]}  Qe7 {[%clk 0:02:45]} 11. Qe2 {[%clk 0:02:44]}  O-O {[%clk 0:02:34]} 12. Kh1 {[%clk 0:02:40]}  Qe6 {[%clk 0:02:27]} 13. f4 {[%clk 0:02:33]}  Bd4 {[%clk 0:02:12]} 14. Rae1 {[%clk 0:02:24]}  Qg4 {[%clk 0:02:09]} 15. Bxf6 {[%clk 0:02:20]}  Bxf6 {[%clk 0:02:04]} 16. e5 {[%clk 0:02:13]}  Qxe2 {[%clk 0:02:03]} 17. Rxe2 {[%clk 0:02:10]}  dxe5 {[%clk 0:02:03]} 18. fxe5 {[%clk 0:02:06]}  Be7 {[%clk 0:02:03]} 19. Bc4 {[%clk 0:02:04]}  Be6 {[%clk 0:01:52]} 20. Bxe6 {[%clk 0:02:01]}  fxe6 {[%clk 0:01:52]} 21. Ref2 {[%clk 0:02:01]}  Rxf2 {[%clk 0:01:44]} 22. Rxf2 {[%clk 0:02:00]}  Rd8 {[%clk 0:01:45]} 23. g3 {[%clk 0:01:59]}  Bb4 {[%clk 0:01:43]} 24. Ne4 {[%clk 0:01:56]}  Rd5 {[%clk 0:01:36]} 25. c3 {[%clk 0:01:44]}  Be7 {[%clk 0:01:31]} 26. Nd2 {[%clk 0:01:43]}  Rxe5 {[%clk 0:01:28]} 27. Nc4 {[%clk 0:01:42]}  Rc5 {[%clk 0:01:26]} 28. b3 {[%clk 0:01:36]}  a4 {[%clk 0:01:25]} 29. Re2 {[%clk 0:01:33]}  axb3 {[%clk 0:01:24]} 30. axb3 {[%clk 0:01:33]}  Kf7 {[%clk 0:01:23]} 31. Ne5+ {[%clk 0:01:29]}  Ke8 {[%clk 0:01:22]} 32. c4 {[%clk 0:01:29]}  Bd6 {[%clk 0:01:16]} 33. Nd3 {[%clk 0:01:27]}  Ra5 {[%clk 0:01:11]} 34. Rxe6+ {[%clk 0:01:27]}  Kf7 {[%clk 0:01:09]} 35. Re3 {[%clk 0:01:24]}  Ra1+ {[%clk 0:01:05]} 36. Kg2 {[%clk 0:01:24]}  Rb1 {[%clk 0:01:05]} 37. c5 {[%clk 0:01:19]}  Bf8 {[%clk 0:00:55]} 38. Ne5+ {[%clk 0:01:15]}  Kg8 {[%clk 0:00:55]} 39. Nd7 {[%clk 0:01:12]}  Rd1 {[%clk 0:00:50]} 40. Nxf8 {[%clk 0:01:11]}  Rd2+ {[%clk 0:00:48]} 41. Kf3 {[%clk 0:01:08]}  Kxf8 {[%clk 0:00:48]} 42. Re6 {[%clk 0:01:09]}  Rd3+ {[%clk 0:00:48]} 43. Kg4 {[%clk 0:01:07]}  Rxb3 {[%clk 0:00:46]} 44. Rxc6 {[%clk 0:01:07]}  Rb7 {[%clk 0:00:46]} 45. Kf5 {[%clk 0:01:07]}  Kf7 {[%clk 0:00:46]} 46. Ke5 {[%clk 0:01:06]}  Ke7 {[%clk 0:00:46]} 47. Kd5 {[%clk 0:01:04]}  Ra7 {[%clk 0:00:44]} 48. Re6+ {[%clk 0:01:02]}  Kf7 {[%clk 0:00:43]} 49. Re2 {[%clk 0:00:56]}  Ra6 {[%clk 0:00:42]} 50. g4 {[%clk 0:00:47]}  Kf6 {[%clk 0:00:39]} 51. h4 {[%clk 0:00:46]}  Kf7 {[%clk 0:00:28]} 52. Re3 {[%clk 0:00:37]}  Rg6 {[%clk 0:00:26]} 53. Re4 {[%clk 0:00:29]}  c6+ {[%clk 0:00:25]} 54. Ke5 {[%clk 0:00:26]}  Re6+ {[%clk 0:00:24]} 55. Kf5 {[%clk 0:00:24]}  Rf6+ {[%clk 0:00:23]} 56. Ke5 {[%clk 0:00:23]}  g5 {[%clk 0:00:17]} 57. hxg5 {[%clk 0:00:19]}  hxg5 {[%clk 0:00:18]} 58. Kd4 {[%clk 0:00:18]}  Rf1 {[%clk 0:00:17]} 59. Kd3 {[%clk 0:00:15]}  Kf6 {[%clk 0:00:17]} 60. Re8 {[%clk 0:00:10]}  Rc1 {[%clk 0:00:16]} 61. Kd4 {[%clk 0:00:08]}  Rd1+ {[%clk 0:00:16]} 62. Kc4 {[%clk 0:00:09]}  Rg1 {[%clk 0:00:15]} 63. Re4 {[%clk 0:00:08]}  Rc1+ {[%clk 0:00:12]} 64. Kd4 {[%clk 0:00:08]}  Rf1 {[%clk 0:00:09]} 65. Kd3 {[%clk 0:00:06]}  Rf3+ {[%clk 0:00:08]} 66. Kd4 {[%clk 0:00:06]}  Rf2 {[%clk 0:00:07]} 67. Kd3 {[%clk 0:00:05]}  Rf1 {[%clk 0:00:07]} 68. Kd4 {[%clk 0:00:05]}  Ra1 {[%clk 0:00:07]} 69. Kd3 {[%clk 0:00:04]}  Ra5 {[%clk 0:00:07]} 70. Kd4 {[%clk 0:00:04]}  Ra3 {[%clk 0:00:07]} 71. Re8 {[%clk 0:00:02]}  Ra4+ {[%clk 0:00:07]} 72. Ke3 {[%clk 0:00:01]}  Kf7 {[%clk 0:00:05]} 73. Rc8 {[%clk 0:00:02]}  Ra6 {[%clk 0:00:04]} 74. Rc7+ {[%clk 0:00:02]}  Ke6 {[%clk 0:00:04]} 75. Ke4 {[%clk 0:00:03]}  Ra4+ {[%clk 0:00:04]} 76. Kf3 {[%clk 0:00:03]}  Ra6 {[%clk 0:00:02]} 77. Ke4 {[%clk 0:00:03]}  Ra4+ {[%clk 0:00:03]} 78. Kf3 {[%clk 0:00:04]}  Kd5 {[%clk 0:00:03]} 79. Rg7 {[%clk 0:00:03]}  Ra3+ {[%clk 0:00:03]} 80. Ke2 {[%clk 0:00:01]}  Kxc5 {[%clk 0:00:04]} 81. Rxg5+ {[%clk 0:00:02]}  Kd4 {[%clk 0:00:04]} 82. Rf5 {[%clk 0:00:03]}  c5 {[%clk 0:00:04]} 83. Kf2 {[%clk 0:00:03]}  c4 {[%clk 0:00:04]} 84. Rf8 {[%clk 0:00:04]}  c3 {[%clk 0:00:04]} 85. Rc8 {[%clk 0:00:03]}  Ke4 {[%clk 0:00:02]} 86. g5 {[%clk 0:00:03]}  Kf4 {[%clk 0:00:01]} 87. g6 {[%clk 0:00:03]}  Ra2+ {[%clk 0:00:01]} 88. Ke1 {[%clk 0:00:03]}  c2 {[%clk 0:00:01]} 89. Kd2 {[%clk 0:00:02]}  c1=Q+ {[%clk 0:00:01]} 90. Kxc1 {[%clk 0:00:03]}  Rg2 {[%clk 0:00:02]} 91. Rc6 {[%clk 0:00:04]}  Kf5 {[%clk 0:00:02]} 92. Kd1 {[%clk 0:00:03]}  Rxg6 {[%clk 0:00:02]} 93. Rxg6 {[%clk 0:00:03]}  Kxg6 {[%clk 0:00:03]} 1/2-1/2


[Site "https://www.chess.com"]

[Event "Titled Tuesday Blitz April 26 Early 2022"]
[White "Sarana, Alexey"]
[Black "Oye-Stromberg, Alexander"]
[WhiteFideId "24133795"]
[BlackFideId "1525999"]
[WhiteElo "2666"]
[BlackElo "1934"]
[Result "1-0"]
[Round "04"]
[TimeControl "180+1"]
[Date "2022.04.26"]
[WhiteClock "0:02:50"]
[BlackClock "0:02:34"]

1. d4 {[%clk 0:03:00]}  Nf6 {[%clk 0:02:59]} 2. c4 {[%clk 0:03:01]}  e6 {[%clk 0:02:58]} 3. Nc3 {[%clk 0:03:01]}  Bb4 {[%clk 0:02:58]} 4. e3 {[%clk 0:03:01]}  O-O {[%clk 0:02:57]} 5. Bd3 {[%clk 0:03:01]}  d5 {[%clk 0:02:56]} 6. Ne2 {[%clk 0:03:01]}  a6 {[%clk 0:02:53]} 7. a3 {[%clk 0:03:01]}  Be7 {[%clk 0:02:53]} 8. cxd5 {[%clk 0:03:00]}  exd5 {[%clk 0:02:53]} 9. Qc2 {[%clk 0:03:00]}  Nbd7 {[%clk 0:02:48]} 10. b4 {[%clk 0:02:58]}  b6 {[%clk 0:02:46]} 11. O-O {[%clk 0:02:58]}  Bb7 {[%clk 0:02:46]} 12. Bb2 {[%clk 0:02:58]}  c5 {[%clk 0:02:45]} 13. bxc5 {[%clk 0:02:57]}  bxc5 {[%clk 0:02:46]} 14. dxc5 {[%clk 0:02:57]}  Nxc5 {[%clk 0:02:47]} 15. Bf5 {[%clk 0:02:58]}  Nce4 {[%clk 0:02:40]} 16. Rfd1 {[%clk 0:02:55]}  Qc7 {[%clk 0:02:34]} 17. Nxe4 {[%clk 0:02:50]} 1-0


[Site "https://www.chess.com"]

[Event "Titled Tuesday Blitz April 26 Early 2022"]
[White "Schekachikhin, Maksim"]
[Black "Topalov, Aleksandar"]
[WhiteFideId "24177830"]
[BlackFideId "925659"]
[WhiteElo "2230"]
[BlackElo "2158"]
[Result "1-0"]
[Round "04"]
[TimeControl "180+1"]
[Date "2022.04.26"]
[WhiteClock "0:00:19"]
[BlackClock "0:00:09"]

1. d4 {[%clk 0:02:59]}  Nf6 {[%clk 0:02:59]} 2. c4 {[%clk 0:02:59]}  c5 {[%clk 0:02:58]} 3. d5 {[%clk 0:02:59]}  d6 {[%clk 0:02:58]} 4. Nc3 {[%clk 0:02:58]}  g6 {[%clk 0:02:59]} 5. e4 {[%clk 0:02:57]}  Bg7 {[%clk 0:03:00]} 6. Bd3 {[%clk 0:02:57]}  O-O {[%clk 0:03:00]} 7. Nf3 {[%clk 0:02:56]}  Na6 {[%clk 0:02:58]} 8. O-O {[%clk 0:02:55]}  Nc7 {[%clk 0:02:58]} 9. h3 {[%clk 0:02:54]}  e5 {[%clk 0:02:58]} 10. a3 {[%clk 0:02:50]}  Nh5 {[%clk 0:02:58]} 11. Rb1 {[%clk 0:02:49]}  Nf4 {[%clk 0:02:59]} 12. b4 {[%clk 0:02:45]}  b6 {[%clk 0:02:59]} 13. a4 {[%clk 0:02:44]}  cxb4 {[%clk 0:02:57]} 14. Rxb4 {[%clk 0:02:38]}  Na6 {[%clk 0:02:57]} 15. Rb1 {[%clk 0:02:37]}  Nc5 {[%clk 0:02:57]} 16. Be2 {[%clk 0:02:35]}  f5 {[%clk 0:02:57]} 17. Nd2 {[%clk 0:02:03]}  fxe4 {[%clk 0:02:55]} 18. Ndxe4 {[%clk 0:02:02]}  Nxe4 {[%clk 0:02:47]} 19. Nxe4 {[%clk 0:02:02]}  Bf5 {[%clk 0:02:48]} 20. Bf3 {[%clk 0:02:00]}  Bxe4 {[%clk 0:02:47]} 21. Bxe4 {[%clk 0:02:00]}  Rc8 {[%clk 0:02:42]} 22. Qb3 {[%clk 0:01:52]}  Ne2+ {[%clk 0:02:32]} 23. Kh2 {[%clk 0:01:48]}  Nxc1 {[%clk 0:02:14]} 24. Rbxc1 {[%clk 0:01:48]}  Bh6 {[%clk 0:02:15]} 25. Rc2 {[%clk 0:01:38]}  Rc5 {[%clk 0:02:15]} 26. Qd3 {[%clk 0:01:37]}  Kg7 {[%clk 0:02:10]} 27. g3 {[%clk 0:01:34]}  Qd7 {[%clk 0:02:08]} 28. Kg2 {[%clk 0:01:28]}  Qxa4 {[%clk 0:02:06]} 29. h4 {[%clk 0:01:27]}  Qd7 {[%clk 0:02:01]} 30. h5 {[%clk 0:01:27]}  Qg4 {[%clk 0:01:47]} 31. hxg6 {[%clk 0:01:26]}  hxg6 {[%clk 0:01:47]} 32. Rh1 {[%clk 0:01:26]}  Rc7 {[%clk 0:01:39]} 33. Rh4 {[%clk 0:01:25]}  Qg5 {[%clk 0:01:39]} 34. f3 {[%clk 0:01:16]}  Qf6 {[%clk 0:01:20]} 35. Rf2 {[%clk 0:01:01]}  g5 {[%clk 0:01:10]} 36. Rh1 {[%clk 0:00:56]}  Rfc8 {[%clk 0:01:07]} 37. Bf5 {[%clk 0:00:48]}  Rxc4 {[%clk 0:00:47]} 38. Bxc8 {[%clk 0:00:48]}  Rxc8 {[%clk 0:00:47]} 39. Rc2 {[%clk 0:00:48]}  Rc5 {[%clk 0:00:34]} 40. Rxc5 {[%clk 0:00:47]}  bxc5 {[%clk 0:00:34]} 41. Rb1 {[%clk 0:00:47]}  Kg8 {[%clk 0:00:26]} 42. Rb8+ {[%clk 0:00:45]}  Bf8 {[%clk 0:00:26]} 43. Rb7 {[%clk 0:00:45]}  Bg7 {[%clk 0:00:22]} 44. Rxa7 {[%clk 0:00:44]}  g4 {[%clk 0:00:22]} 45. fxg4 {[%clk 0:00:43]}  Qg5 {[%clk 0:00:22]} 46. Ra8+ {[%clk 0:00:39]}  Bf8 {[%clk 0:00:21]} 47. Qf5 {[%clk 0:00:27]}  Qd2+ {[%clk 0:00:21]} 48. Kh3 {[%clk 0:00:27]}  Qh6+ {[%clk 0:00:21]} 49. Qh5 {[%clk 0:00:27]}  Qg7 {[%clk 0:00:17]} 50. g5 {[%clk 0:00:22]}  e4 {[%clk 0:00:17]} 51. g6 {[%clk 0:00:22]}  Qd7+ {[%clk 0:00:12]} 52. Qg4 {[%clk 0:00:21]}  Qe7 {[%clk 0:00:08]} 53. Qe6+ {[%clk 0:00:20]}  Kg7 {[%clk 0:00:09]} 54. Qxe7+ {[%clk 0:00:18]}  Bxe7 {[%clk 0:00:09]} 55. Ra7 {[%clk 0:00:19]} 1-0


[Site "https://www.chess.com"]

[Event "Titled Tuesday Blitz April 26 Early 2022"]
[White "Shankland, Sam"]
[Black "Li, Ben"]
[WhiteFideId "2004887"]
[BlackFideId "2089980"]
[WhiteElo "2618"]
[BlackElo "2267"]
[Result "1-0"]
[Round "04"]
[TimeControl "180+1"]
[Date "2022.04.26"]
[WhiteClock "0:01:51"]
[BlackClock "0:00:15"]

1. d4 {[%clk 0:03:00]}  d5 {[%clk 0:02:57]} 2. c4 {[%clk 0:03:01]}  c6 {[%clk 0:02:54]} 3. Nc3 {[%clk 0:03:00]}  Nf6 {[%clk 0:02:48]} 4. e3 {[%clk 0:03:00]}  e6 {[%clk 0:02:47]} 5. Nf3 {[%clk 0:03:00]}  Nbd7 {[%clk 0:02:47]} 6. Be2 {[%clk 0:03:00]}  b6 {[%clk 0:02:45]} 7. O-O {[%clk 0:03:00]}  Bb7 {[%clk 0:02:45]} 8. b3 {[%clk 0:03:00]}  Bb4 {[%clk 0:02:45]} 9. Bb2 {[%clk 0:03:00]}  O-O {[%clk 0:02:42]} 10. Qc2 {[%clk 0:03:00]}  Rc8 {[%clk 0:02:36]} 11. a3 {[%clk 0:02:53]}  Bd6 {[%clk 0:02:35]} 12. e4 {[%clk 0:02:51]}  dxe4 {[%clk 0:02:32]} 13. Nxe4 {[%clk 0:02:51]}  Nxe4 {[%clk 0:02:04]} 14. Qxe4 {[%clk 0:02:52]}  Qe7 {[%clk 0:02:04]} 15. b4 {[%clk 0:02:47]}  f5 {[%clk 0:01:51]} 16. Qe3 {[%clk 0:02:40]}  c5 {[%clk 0:01:51]} 17. dxc5 {[%clk 0:02:26]}  bxc5 {[%clk 0:01:52]} 18. b5 {[%clk 0:02:26]}  e5 {[%clk 0:01:43]} 19. Rfd1 {[%clk 0:01:55]}  e4 {[%clk 0:01:20]} 20. Qg5 {[%clk 0:01:55]}  Nf6 {[%clk 0:00:32]} 21. Nh4 {[%clk 0:01:55]}  Bb8 {[%clk 0:00:15]} 22. Nxf5 {[%clk 0:01:52]}  Qc7 {[%clk 0:00:15]} 23. Be5 {[%clk 0:01:51]} 1-0


[Site "https://www.chess.com"]

[Event "Titled Tuesday Blitz April 26 Early 2022"]
[White "Stevens, Christian"]
[Black "Korchmar, Vasiliy"]
[WhiteFideId "2604450"]
[BlackFideId "24131750"]
[WhiteElo "2525"]
[BlackElo "2370"]
[Result "1-0"]
[Round "04"]
[TimeControl "180+1"]
[Date "2022.04.26"]
[WhiteClock "0:00:13"]
[BlackClock "0:00:19"]

1. Nf3 {[%clk 0:03:00]}  d5 {[%clk 0:02:59]} 2. e3 {[%clk 0:03:00]}  Nf6 {[%clk 0:02:59]} 3. c4 {[%clk 0:03:00]}  c6 {[%clk 0:02:59]} 4. Nc3 {[%clk 0:02:59]}  e6 {[%clk 0:02:59]} 5. Qc2 {[%clk 0:02:59]}  Bd6 {[%clk 0:02:59]} 6. b3 {[%clk 0:02:59]}  O-O {[%clk 0:03:00]} 7. Bb2 {[%clk 0:02:59]}  e5 {[%clk 0:03:00]} 8. cxd5 {[%clk 0:02:58]}  cxd5 {[%clk 0:03:01]} 9. Nb5 {[%clk 0:02:57]}  Nc6 {[%clk 0:03:02]} 10. Nxd6 {[%clk 0:02:49]}  Qxd6 {[%clk 0:03:03]} 11. Rc1 {[%clk 0:02:47]}  Bg4 {[%clk 0:02:58]} 12. h3 {[%clk 0:02:05]}  Bh5 {[%clk 0:02:55]} 13. Bb5 {[%clk 0:01:31]}  e4 {[%clk 0:01:46]} 14. Nd4 {[%clk 0:01:18]}  Nb4 {[%clk 0:01:46]} 15. Qc7 {[%clk 0:01:10]}  Qxc7 {[%clk 0:01:42]} 16. Rxc7 {[%clk 0:01:09]}  a6 {[%clk 0:01:43]} 17. a3 {[%clk 0:00:50]}  axb5 {[%clk 0:01:34]} 18. axb4 {[%clk 0:00:49]}  Ra2 {[%clk 0:01:34]} 19. Bc3 {[%clk 0:00:45]}  Rfa8 {[%clk 0:01:35]} 20. O-O {[%clk 0:00:41]}  b6 {[%clk 0:01:18]} 21. Nf5 {[%clk 0:00:38]}  Ne8 {[%clk 0:01:11]} 22. Rd7 {[%clk 0:00:23]}  Bg6 {[%clk 0:00:50]} 23. Ne7+ {[%clk 0:00:19]}  Kf8 {[%clk 0:00:50]} 24. Nxd5 {[%clk 0:00:19]}  Bf5 {[%clk 0:00:44]} 25. Rb7 {[%clk 0:00:18]}  Be6 {[%clk 0:00:42]} 26. Nxb6 {[%clk 0:00:16]}  R8a7 {[%clk 0:00:41]} 27. Rxa7 {[%clk 0:00:16]}  Rxa7 {[%clk 0:00:42]} 28. Bd4 {[%clk 0:00:15]}  Bxb3 {[%clk 0:00:36]} 29. Rc1 {[%clk 0:00:16]}  Rb7 {[%clk 0:00:25]} 30. Rc8 {[%clk 0:00:15]}  Be6 {[%clk 0:00:20]} 31. Bc5+ {[%clk 0:00:13]}  Kg8 {[%clk 0:00:19]} 32. Rxe8# {[%clk 0:00:13]} 1-0


[Site "https://www.chess.com"]

[Event "Titled Tuesday Blitz April 26 Early 2022"]
[White "Stribuk, Artiom"]
[Black "Deac, Bogdan-Daniel"]
[WhiteFideId "13515659"]
[BlackFideId "1226380"]
[WhiteElo "2259"]
[BlackElo "2648"]
[Result "0-1"]
[Round "04"]
[TimeControl "180+1"]
[Date "2022.04.26"]
[WhiteClock "0:00:07"]
[BlackClock "0:00:07"]

1. d4 {[%clk 0:03:00]}  Nf6 {[%clk 0:02:59]} 2. c4 {[%clk 0:03:01]}  e6 {[%clk 0:03:00]} 3. Nc3 {[%clk 0:03:01]}  Bb4 {[%clk 0:02:59]} 4. Qc2 {[%clk 0:03:02]}  d5 {[%clk 0:02:59]} 5. a3 {[%clk 0:03:02]}  Bxc3+ {[%clk 0:02:55]} 6. Qxc3 {[%clk 0:03:03]}  dxc4 {[%clk 0:02:51]} 7. Qxc4 {[%clk 0:02:56]}  b6 {[%clk 0:02:52]} 8. Bf4 {[%clk 0:02:56]}  Nd5 {[%clk 0:02:32]} 9. Bg3 {[%clk 0:02:44]}  Ba6 {[%clk 0:02:31]} 10. Qa4+ {[%clk 0:02:41]}  c6 {[%clk 0:01:41]} 11. e4 {[%clk 0:02:30]}  Bxf1 {[%clk 0:01:39]} 12. Kxf1 {[%clk 0:02:29]}  Ne7 {[%clk 0:01:40]} 13. Ne2 {[%clk 0:02:12]}  O-O {[%clk 0:01:38]} 14. f3 {[%clk 0:01:18]}  Nd7 {[%clk 0:01:24]} 15. Kf2 {[%clk 0:01:16]}  b5 {[%clk 0:01:06]} 16. Qc2 {[%clk 0:01:08]}  a5 {[%clk 0:01:06]} 17. Rhd1 {[%clk 0:01:08]}  Rc8 {[%clk 0:01:04]} 18. Rac1 {[%clk 0:01:08]}  Nb6 {[%clk 0:00:58]} 19. Rd3 {[%clk 0:00:45]}  Qd7 {[%clk 0:00:53]} 20. Kg1 {[%clk 0:00:42]}  f5 {[%clk 0:00:52]} 21. Rc3 {[%clk 0:00:35]}  fxe4 {[%clk 0:00:51]} 22. Qxe4 {[%clk 0:00:36]}  Nbd5 {[%clk 0:00:37]} 23. Rc5 {[%clk 0:00:33]}  a4 {[%clk 0:00:36]} 24. Be5 {[%clk 0:00:32]}  Ng6 {[%clk 0:00:36]} 25. h3 {[%clk 0:00:30]}  Rf5 {[%clk 0:00:23]} 26. Ng3 {[%clk 0:00:21]}  Rf7 {[%clk 0:00:18]} 27. Kh2 {[%clk 0:00:20]}  Nde7 {[%clk 0:00:15]} 28. Qe1 {[%clk 0:00:13]}  Rd8 {[%clk 0:00:12]} 29. Ne4 {[%clk 0:00:13]}  h6 {[%clk 0:00:09]} 30. Qg3 {[%clk 0:00:12]}  Kh7 {[%clk 0:00:08]} 31. R1c2 {[%clk 0:00:12]}  Nf5 {[%clk 0:00:08]} 32. Qf2 {[%clk 0:00:11]}  Nge7 {[%clk 0:00:06]} 33. Rd2 {[%clk 0:00:10]}  Ng6 {[%clk 0:00:05]} 34. Ng3 {[%clk 0:00:09]}  Nxe5 {[%clk 0:00:03]} 35. Rxe5 {[%clk 0:00:09]}  Nxd4 {[%clk 0:00:04]} 36. Ne2 {[%clk 0:00:07]}  Nxf3+ {[%clk 0:00:03]} 37. gxf3 {[%clk 0:00:05]}  Qxd2 {[%clk 0:00:03]} 38. Qh4 {[%clk 0:00:06]}  Qd6 {[%clk 0:00:03]} 39. Qe4+ {[%clk 0:00:06]}  Rf5 {[%clk 0:00:03]} 40. f4 {[%clk 0:00:06]}  Kg8 {[%clk 0:00:03]} 41. Kg1 {[%clk 0:00:04]}  Rxe5 {[%clk 0:00:03]} 42. fxe5 {[%clk 0:00:05]}  Qd1+ {[%clk 0:00:04]} 43. Kf2 {[%clk 0:00:05]}  Qd5 {[%clk 0:00:05]} 44. Qe3 {[%clk 0:00:05]}  Rf8+ {[%clk 0:00:05]} 45. Kg3 {[%clk 0:00:06]}  Rf5 {[%clk 0:00:06]} 46. Qa7 {[%clk 0:00:05]}  Qxe5+ {[%clk 0:00:06]} 47. Kh4 {[%clk 0:00:05]}  Rh5+ {[%clk 0:00:05]} 48. Kg4 {[%clk 0:00:06]}  Qf5+ {[%clk 0:00:06]} 49. Kg3 {[%clk 0:00:06]}  Rxh3+ {[%clk 0:00:07]} 50. Kg2 {[%clk 0:00:07]}  Qf3+ {[%clk 0:00:07]} 0-1


[Site "https://www.chess.com"]

[Event "Titled Tuesday Blitz April 26 Early 2022"]
[White "Svane, Rasmus"]
[Black "Bilych, Olexiy"]
[WhiteFideId "4657101"]
[BlackFideId "14156504"]
[WhiteElo "2645"]
[BlackElo "2176"]
[Result "1-0"]
[Round "04"]
[TimeControl "180+1"]
[Date "2022.04.26"]
[WhiteClock "0:00:07"]
[BlackClock "0:00:10"]

1. Nf3 {[%clk 0:02:57]}  d5 {[%clk 0:02:59]} 2. g3 {[%clk 0:02:56]}  g6 {[%clk 0:02:55]} 3. Bg2 {[%clk 0:02:57]}  Bg7 {[%clk 0:02:56]} 4. d4 {[%clk 0:02:57]}  Nf6 {[%clk 0:02:56]} 5. O-O {[%clk 0:02:57]}  O-O {[%clk 0:02:56]} 6. c3 {[%clk 0:02:56]}  b6 {[%clk 0:02:53]} 7. c4 {[%clk 0:02:56]}  Bb7 {[%clk 0:02:51]} 8. cxd5 {[%clk 0:02:57]}  Nxd5 {[%clk 0:02:49]} 9. Re1 {[%clk 0:02:57]}  c5 {[%clk 0:02:46]} 10. e4 {[%clk 0:02:57]}  Nf6 {[%clk 0:02:44]} 11. d5 {[%clk 0:02:58]}  e6 {[%clk 0:02:30]} 12. dxe6 {[%clk 0:02:21]}  fxe6 {[%clk 0:02:21]} 13. Qb3 {[%clk 0:02:16]}  Qe7 {[%clk 0:02:21]} 14. Ng5 {[%clk 0:02:09]}  Re8 {[%clk 0:02:09]} 15. Nc3 {[%clk 0:01:49]}  Nc6 {[%clk 0:01:56]} 16. e5 {[%clk 0:01:43]}  Nd7 {[%clk 0:01:55]} 17. f4 {[%clk 0:01:16]}  Nd4 {[%clk 0:01:43]} 18. Qc4 {[%clk 0:01:16]}  Bxg2 {[%clk 0:01:42]} 19. Kxg2 {[%clk 0:01:17]}  Nb8 {[%clk 0:01:34]} 20. Nce4 {[%clk 0:01:14]}  Nbc6 {[%clk 0:01:33]} 21. Be3 {[%clk 0:01:13]}  Rad8 {[%clk 0:01:31]} 22. Rad1 {[%clk 0:01:05]}  h6 {[%clk 0:01:30]} 23. Nf3 {[%clk 0:01:04]}  Nxf3 {[%clk 0:01:30]} 24. Kxf3 {[%clk 0:01:04]}  Bxe5 {[%clk 0:01:30]} 25. Qa4 {[%clk 0:00:45]}  Nd4+ {[%clk 0:01:27]} 26. Bxd4 {[%clk 0:00:37]}  Bxd4 {[%clk 0:01:22]} 27. b3 {[%clk 0:00:35]}  Kg7 {[%clk 0:01:19]} 28. Qc4 {[%clk 0:00:34]}  Qb7 {[%clk 0:01:19]} 29. Qe2 {[%clk 0:00:32]}  e5 {[%clk 0:01:17]} 30. Kg2 {[%clk 0:00:29]}  exf4 {[%clk 0:01:17]} 31. Qf3 {[%clk 0:00:19]}  fxg3 {[%clk 0:01:15]} 32. hxg3 {[%clk 0:00:13]}  Rf8 {[%clk 0:01:14]} 33. Qg4 {[%clk 0:00:10]}  Rde8 {[%clk 0:01:14]} 34. Kh3 {[%clk 0:00:10]}  Qc8 {[%clk 0:00:56]} 35. Qxc8 {[%clk 0:00:09]}  Rxc8 {[%clk 0:00:57]} 36. Nd6 {[%clk 0:00:10]}  Rc7 {[%clk 0:00:53]} 37. Nb5 {[%clk 0:00:10]}  Rd7 {[%clk 0:00:53]} 38. Re6 {[%clk 0:00:10]}  Rfd8 {[%clk 0:00:48]} 39. Rde1 {[%clk 0:00:09]}  Bf6 {[%clk 0:00:47]} 40. Rc6 {[%clk 0:00:08]}  Kf7 {[%clk 0:00:42]} 41. Ree6 {[%clk 0:00:08]}  Bg5 {[%clk 0:00:36]} 42. Rxg6 {[%clk 0:00:08]}  Rd3 {[%clk 0:00:33]} 43. Rgd6 {[%clk 0:00:08]}  R8xd6 {[%clk 0:00:28]} 44. Nxd6+ {[%clk 0:00:09]}  Ke6 {[%clk 0:00:29]} 45. Nb5+ {[%clk 0:00:05]}  Kd7 {[%clk 0:00:25]} 46. Rc7+ {[%clk 0:00:05]}  Ke6 {[%clk 0:00:21]} 47. Kg4 {[%clk 0:00:05]}  a6 {[%clk 0:00:20]} 48. Rc6+ {[%clk 0:00:05]}  Kd5 {[%clk 0:00:19]} 49. Rd6+ {[%clk 0:00:05]}  Ke4 {[%clk 0:00:19]} 50. Re6+ {[%clk 0:00:05]}  Kd5 {[%clk 0:00:19]} 51. Nc7+ {[%clk 0:00:04]}  Kd4 {[%clk 0:00:19]} 52. Rxb6 {[%clk 0:00:05]}  Rd2 {[%clk 0:00:14]} 53. Rxa6 {[%clk 0:00:04]}  Kc3 {[%clk 0:00:13]} 54. Nb5+ {[%clk 0:00:04]}  Kb2 {[%clk 0:00:13]} 55. Nd6 {[%clk 0:00:04]}  Rd4+ {[%clk 0:00:13]} 56. Kf5 {[%clk 0:00:04]}  Rd3 {[%clk 0:00:12]} 57. Nc4+ {[%clk 0:00:05]}  Kc3 {[%clk 0:00:12]} 58. Kg4 {[%clk 0:00:05]}  Rd4+ {[%clk 0:00:12]} 59. Kf5 {[%clk 0:00:06]}  Rd3 {[%clk 0:00:13]} 60. g4 {[%clk 0:00:06]}  Rf3+ {[%clk 0:00:12]} 61. Ke6 {[%clk 0:00:07]}  Rf4 {[%clk 0:00:13]} 62. Ne5 {[%clk 0:00:07]}  Kb2 {[%clk 0:00:12]} 63. Nd3+ {[%clk 0:00:06]}  Kc3 {[%clk 0:00:12]} 64. Nxf4 {[%clk 0:00:07]}  Bxf4 {[%clk 0:00:12]} 65. Kd5 {[%clk 0:00:06]}  Kb4 {[%clk 0:00:09]} 66. Ra4+ {[%clk 0:00:07]}  Kc3 {[%clk 0:00:09]} 67. Rxf4 {[%clk 0:00:07]}  Kb2 {[%clk 0:00:10]} 68. a4 {[%clk 0:00:07]} 1-0


[Site "https://www.chess.com"]